[Event "Gibraltar Amateurs A 2020"]
[Site "Caleta"]
[Date "2020.01.21"]
[Round "3.2"]
[White "Kuenitz, Klaus"]
[Black "Dennis, Nigel W"]
[Result "0-1"]
[ECO "E61"]
[WhiteElo "1726"]
[BlackElo "1784"]
[Annotator "NA RC"]
[PlyCount "76"]
[EventDate "2020.01.20"]
[EventType "swiss"]
[EventCountry "GGB"]
[SourceTitle "playchess.com"]
[Source "ChessBase"]
[SourceQuality "1"]
[TimeControl "6600+10"]

1. d4 {[%emt 0:00:00]} Nf6 {[%emt 0:06:40]} 2. c4 {[%emt 0:00:10]} g6 {[%emt 0:00:05]} 3. Nc3 {[%emt 0:00:38]} Bg7 {[%emt 0:00:07]} 4. Nf3 {[%emt 0:00:18]} O-O {[%emt 0:00:10]} 5. Bf4 {[%emt 0:00:37]} d6 {[%emt 0:00:25]} 6. e3 {[%emt 0:00:47]} Nbd7 {[%emt 0:00:12]} 7. Be2 {[%emt 0:00:22]} c5 {[%emt 0:00:46]} 8. h3 {[%emt 0:04:23]} b6 {[%emt 0:00:33]} 9. O-O {[%emt 0:01:22]} Bb7 {[%emt 0:00:22]} 10. d5 {[%emt 0:03:40]} a6 {[%emt 0:04:46]} 11. a4 {[%emt 0:01:14]} Qc7 {[%emt 0:00:36]} 12. Qd2 {[%emt 0:03:22]} Rad8 {[%emt 0:11:32]} 13. Rfe1 {[%emt 0:01:23]} Ne8 {[%emt 0:00:31]} 14. Rad1 {[%emt 0:01:46]} Ndf6 {[%emt 0:00:30]} 15. Bf1 {[%emt 0:00:34]} Nh5 {[%emt 0:02:33]} 16. Bh2 {[%emt 0:01:00]} e5 {[%emt 0:06:40]} 17. dxe6 {[%emt 0:02:11]} fxe6 {[%emt 0:03:48]} 18. Ng5 {[%emt 0:01:23]} Qe7 {[%emt 0:00:50]} 19. Nge4 {[%emt 0:00:39]} d5 {[%emt 0:02:19]} 20. Ng3 {[%emt 0:01:37]} Nxg3 {[%emt 0:03:58]} 21. Bxg3 {[%emt 0:00:20]} Nf6 {[%emt 0:00:26]} 22. Qc2 {[%emt 0:03:13]} Rd7 {[%emt 0:05:38]} 23. f3 {[%emt 0:03:43]} Rfd8 {[%emt 0:00:47]} 24. Qb3 {[%emt 0:06:07]} Ba8 {[%emt 0:06:59]} 25. cxd5 {[%emt 0:04:39]} Nxd5 {[%emt 0:02:35]} 26. Nxd5 {[%emt 0:17:11]} Bxd5 {[%emt 0:00:18]} 27. Qc2 {[%emt 0:02:30]} b5 {[%emt 0:06:32]} 28. axb5 {[%emt 0:02:41]} axb5 {[%emt 0:00:07]} 29. b3 {[%emt 0:01:35]} Bc6 {[%emt 0:04:11]} 30. Rxd7 {[%emt 0:00:55]} Rxd7 {[%emt 0:00:17]} 31. Rc1 {[%emt 0:01:44]} Bf8 {[%emt 0:01:16]} 32. e4 {[%emt 0:00:50]} Bh6 {[%emt 0:01:55]} 33. f4 {[%emt 0:09:29]} e5 {[%emt 0:11:41]} 34. Qxc5 {[%emt 0:00:35]} exf4 {[%emt 0:04:17]} 35. Qxe7 {[%emt 0:03:12]} Rxe7 {[%emt 0:00:11]} 36. Bh4 {[%emt 0:00:31]} Re6 {[%emt 0:02:10]} 37. e5 {[%emt 0:06:35]} f3 {[%emt 0:01:12]} 38. gxf3 {[%emt 0:01:28]} Bxc1 {[%emt 0:00:36]} 0-1

[Event "Gibraltar Amateurs A 2020"]
[Site "Caleta"]
[Date "2020.01.21"]
[Round "3.3"]
[White "Dragic, Dragan"]
[Black "Zitan, Abdelhay"]
[Result "1/2-1/2"]
[ECO "D37"]
[WhiteElo "1781"]
[BlackElo "1705"]
[Annotator "NA RC"]
[PlyCount "52"]
[EventDate "2020.01.20"]
[EventType "swiss"]
[EventCountry "GGB"]
[SourceTitle "playchess.com"]
[Source "ChessBase"]
[SourceQuality "1"]
[TimeControl "6600+10"]

1. d4 {[%emt 0:06:09]} d5 {[%emt 0:00:03]} 2. c4 {[%emt 0:00:04]} e6 {[%emt 0:00:25]} 3. Nc3 {[%emt 0:02:41]} Nf6 {[%emt 0:00:16]} 4. Nf3 {[%emt 0:00:18]} Be7 {[%emt 0:00:16]} 5. Bf4 {[%emt 0:03:13]} O-O {[%emt 0:00:51]} 6. e3 {[%emt 0:03:28]} a6 {[%emt 0:01:21]} 7. Bd3 {[%emt 0:00:56]} dxc4 {[%emt 0:01:16]} 8. Bxc4 {[%emt 0:00:29]} b5 {[%emt 0:00:09]} 9. Bd3 {[%emt 0:01:42]} Bb7 {[%emt 0:01:30]} 10. Qc2 {[%emt 0:03:53]} Nbd7 {[%emt 0:08:10]} 11. Rd1 {[%emt 0:05:02]} Rc8 {[%emt 0:06:52]} 12. Ng5 {[%emt 0:12:20]} h6 {[%emt 0:14:52]} 13. h4 {[%emt 0:10:05]} Bd6 {[%emt 0:07:32]} 14. Be5 {[%emt 0:04:45]} Qe7 {[%emt 0:02:08]} 15. f4 {[%emt 0:24:52]} Rfd8 {[%emt 0:07:42]} 16. Nf3 {[%emt 0:04:25]} Ng4 {[%emt 0:06:19]} 17. Qe2 {[%emt 0:01:56]} Ndf6 {[%emt 0:12:05]} 18. e4 {[%emt 0:04:08]} Bb4 {[%emt 0:03:50]} 19. Nh2 {[%emt 0:06:15]} Nxe5 {[%emt 0:03:52]} 20. fxe5 {[%emt 0:01:56]} Nxe4 {[%emt 0:02:40]} 21. Bxe4 {[%emt 0:03:02]} Bxc3+ {[%emt 0:01:30]} 22. Kf1 {[%emt 0:00:26]} Bxe4 {[%emt 0:00:44]} 23. bxc3 {[%emt 0:00:19]} Qxh4 {[%emt 0:02:10]} 24. Kg1 {[%emt 0:00:25]} Bd5 {[%emt 0:06:22]} 25. Ng4 {[%emt 0:01:25]} Qg5 {[%emt 0:02:00]} 26. Rh5 {[%emt 0:00:14]} Qg6 {[%emt 0:00:54]} 1/2-1/2

[Event "Gibraltar Amateurs A 2020"]
[Site "Caleta"]
[Date "2020.01.21"]
[Round "3.6"]
[White "Nebel, Uwe"]
[Black "Collins, Andrew"]
[Result "1-0"]
[ECO "C94"]
[WhiteElo "1847"]
[BlackElo "1720"]
[Annotator "NA RC"]
[PlyCount "45"]
[EventDate "2020.01.20"]
[EventType "swiss"]
[EventCountry "GGB"]
[SourceTitle "playchess.com"]
[Source "ChessBase"]
[SourceQuality "1"]
[TimeControl "6600+10"]

{[%evp 8,45,20,19,20,20,33,22,10,32767,32767,32767,32767,32767,20,32767,32767,32767,32767,32767,32767,32767,32767,21,52,71,52,28,61,31,68,30,185,147,127,150,216,202,29998,29999]} 1. e4 {[%emt 0:00:00]} e5 {[%emt 0:00:00]} 2. Nf3 {[%emt 0:00:02]} Nc6 {[%emt 0:00:03]} 3. Bb5 {[%emt 0:00:05]} a6 {[%emt 0:00:07]} 4. Ba4 {[%emt 0:00:13]} Nf6 {[%emt 0:00:12]} 5. O-O {[%emt 0:00:08]} b5 {[%emt 0:00:12]} 6. Bb3 {[%emt 0:00:05]} Be7 {[%emt 0:00:13]} 7. Re1 {[%emt 0:00:06]} d6 {[%emt 0:00:29]} 8. h3 {[%emt 0:01:50]} O-O {[%emt 0:00:09]} 9. c3 {[%emt 0:00:28]} Nb8 {[%emt 0:00:01]} 10. d3 {[%emt 0:04:03]} c5 {[%emt 0:03:50]} 11. Nbd2 {[%emt 0:00:49]} Bb7 {[%emt 0:00:41] C94: Closed Ruy Lopez: Breyer Variation with 10 d3} 12. Nf1 {[%emt 0:00:24]} h6 {[%emt 0:00:23]} (12... Nbd7 13. Ng3 Re8 14. a4 Rc8 15. axb5 axb5 16. Nf5 c4 17. dxc4 bxc4 18. Bc2 Nc5 19. Bg5 {½-½ (45) Short,N (2688)-Amin,B (2680) Abu Dhabi 2017}) 13. Ng3 {[%emt 0:01:31]} Re8 {[%emt 0:00:07]} 14. Nf5 $146 {[%emt 0:01:55]} ({Predecessor:} 14. Nh2 Bf8 15. Ng4 Nbd7 16. Qf3 Rc8 17. c4 Nxg4 18. hxg4 {½-½ (58) Amanov,Z (2390)-Kovalev,V (2320) Alushta 2009}) 14... Bf8 {[%emt 0:00:01]} 15. Nh2 {[%emt 0:10:24]} Nbd7 {[%emt 0:03:47]} 16. Ng4 {[%emt 0:05:17]} Qc7 {[%emt 0:09:44]} 17. Bxh6 {[%emt 0:15:40]} c4 {[%emt 0:04:58]} 18. Bxg7 {[%emt 0:11:26]} Bxg7 {[%emt 0:02:33]} 19. Qd2 {[%emt 0:02:18]} Nh7 {[%emt 0:04:50]} ({Avoid the trap} 19... cxb3 $2 {[#]} 20. Qg5 $1 $18 {[%mdl 512]}) ({Black should play} 19... Re6 $1 $14 20. Ngh6+ Kf8 21. Nxg7 Kxg7 22. Nf5+ Kf8 23. Qh6+ Ke8 24. Qh8+ Nf8 25. Ng7+ Ke7 26. dxc4 bxc4 27. Nf5+ Kd7 28. Ba4+ Bc6 29. Bxc6+ Qxc6) 20. Ngh6+ {[%emt 0:09:13]} Kf8 {[%emt 0:05:37]} 21. dxc4 {[%emt 0:02:09]} bxc4 {[%emt 0:07:06] [#]} (21... Re6 $16 {is a better defense.}) 22. Bxc4 $1 {[%emt 0:02:29]} Qxc4 {[%emt 0:44:05]} (22... Ndf6 $18) 23. Qxd6+ {[%emt 0:00:10] Double Attack} 1-0

[Event "Gibraltar Amateurs A 2020"]
[Site "Caleta"]
[Date "2020.01.21"]
[Round "3.7"]
[White "O Muireagain, Colm"]
[Black "Jacob, Sydney J"]
[Result "1-0"]
[ECO "B07"]
[WhiteElo "1376"]
[BlackElo "1816"]
[Annotator "NA RC"]
[PlyCount "144"]
[EventDate "2020.01.20"]
[EventType "swiss"]
[EventCountry "GGB"]
[SourceTitle "playchess.com"]
[Source "ChessBase"]
[SourceQuality "1"]
[TimeControl "6600+10"]

1. e4 {[%emt 0:00:00]} d6 {[%emt 0:12:13]} 2. d4 {[%emt 0:00:01]} Nf6 {[%emt 0:00:32]} 3. Nc3 {[%emt 0:00:07]} a6 {[%emt 0:01:00]} 4. Be3 {[%emt 0:02:20]} (4. f4 b5 5. e5 b4 6. Qf3 Ra7 7. exf6 bxc3 8. fxe7 Bxe7 9. Qxc3 O-O 10. Nf3 Bf6 11. Bc4 Re8+ 12. Be3 {1-0 (22) Czebe,A (2473)-Mrva,M (2403) Slovakia 2017}) 4... b5 {[%emt 0:02:00]} 5. f3 {[%emt 0:02:14]} Bb7 {[%emt 0:00:28]} 6. Qd2 {[%emt 0:02:09] B07: Pirc Defence: Miscellaneous Systems} Nbd7 {[%emt 0:00:39]} 7. a4 $146 {[%emt 0:01:48]} ({Predecessor:} 7. g4 Nb6 8. h4 Nc4 9. Bxc4 bxc4 10. Qe2 d5 11. Nxd5 Nxd5 12. exd5 Qxd5 {0-1 (40) Lukic,L (1757)-Rovcanin,Z (2173) Podgorica 2014}) 7... b4 {[%emt 0:01:54]} 8. Nd1 {[%emt 0:00:34]} a5 {[%emt 0:03:06]} 9. Bb5 {[%emt 0:03:36]} c6 {[%emt 0:01:03]} 10. Bd3 {[%emt 0:00:50]} e6 {[%emt 0:03:39]} (10... e5 $11) 11. Ne2 {[%emt 0:00:53]} Be7 {[%emt 0:01:19]} 12. O-O {[%emt 0:00:10]} O-O {[%emt 0:00:32]} 13. Ng3 {[%emt 0:01:15]} Ba6 {[%emt 0:01:40]} 14. Bxa6 {[%emt 0:04:54]} Rxa6 {[%emt 0:00:06]} 15. Qe2 {[%emt 0:00:16]} Ra8 {[%emt 0:01:33]} 16. f4 {[%emt 0:04:18]} Nb6 {[%emt 0:04:07]} 17. f5 {[%emt 0:10:03]} e5 {[%emt 0:01:31]} 18. dxe5 {[%emt 0:01:56]} dxe5 {[%emt 0:00:12]} 19. b3 {[%emt 0:03:55]} Nbd7 {[%emt 0:00:37]} 20. Nb2 {[%emt 0:07:00]} Bc5 {[%emt 0:02:55]} 21. Rad1 {[%emt 0:01:55]} Bxe3+ {[%emt 0:00:50]} 22. Qxe3 {[%emt 0:00:08]} Ng4 {[%emt 0:05:23]} 23. Qf3 {[%emt 0:03:34]} Ngf6 {[%emt 0:11:30]} 24. Nc4 {[%emt 0:01:42]} Qc7 {[%emt 0:07:21]} 25. Rd2 {[%emt 0:09:16]} (25. Nh5 $14) 25... Nb6 {[%emt 0:01:47]} 26. Nxb6 {[%emt 0:03:48]} Qxb6+ {[%emt 0:00:11]} 27. Qf2 {[%emt 0:01:09]} Qxf2+ {[%emt 0:02:09]} 28. Kxf2 {[%emt 0:01:24]} Rfc8 {[%emt 0:06:31]} 29. Kf3 {[%emt 0:06:51]} Kf8 {[%emt 0:00:37]} 30. Rfd1 {[%emt 0:00:47]} Ke7 {[%emt 0:00:18] [#]} (30... c5 $14) 31. Nf1 $1 {[%emt 0:01:24]} Rc7 {[%emt 0:06:23]} 32. Ne3 {[%emt 0:00:42]} Nd7 {[%emt 0:07:58]} 33. Nc4 {[%emt 0:00:57]} Ra6 {[%emt 0:00:33]} 34. g4 {[%emt 0:04:07]} f6 {[%emt 0:00:43]} 35. h4 {[%emt 0:00:51]} Nf8 {[%emt 0:01:25]} 36. g5 {[%emt 0:02:27]} Rd7 {[%emt 0:01:22]} 37. gxf6+ {[%emt 0:03:24]} gxf6 {[%emt 0:00:16]} 38. Kg4 {[%emt 0:03:04]} Rxd2 {[%emt 0:02:02]} 39. Rxd2 {[%emt 0:00:04]} Nd7 {[%emt 0:01:08]} 40. Kh5 {[%emt 0:02:43]} Nc5 {[%emt 0:00:39]} 41. Re2 {[%emt 0:01:32]} Ra7 {[%emt 0:00:45]} 42. Kh6 {[%emt 0:00:35]} Kf8 {[%emt 0:00:16]} 43. Nd2 $2 {[%emt 0:03:23]} (43. Rd2 $18 Ke8 44. Nd6+ Kf8 45. Nc8) 43... Rd7 {[%emt 0:00:40]} 44. Nc4 {[%emt 0:00:11]} Ra7 {[%emt 0:00:05]} 45. Kh5 {[%emt 0:00:19]} Ra8 {[%emt 0:01:20]} 46. Kg4 {[%emt 0:00:10]} Ke7 {[%emt 0:00:20]} 47. Kf3 {[%emt 0:00:19]} Nb7 {[%emt 0:00:42]} 48. Rg2 {[%emt 0:00:40]} Kf7 {[%emt 0:00:40]} 49. h5 {[%emt 0:01:01]} Rg8 {[%emt 0:00:46]} 50. Rxg8 {[%emt 0:00:48]} Kxg8 {[%emt 0:00:04]} 51. h6 {[%emt 0:00:30]} Kf7 {[%emt 0:00:19]} 52. Ke3 {[%emt 0:00:27]} Ke7 {[%emt 0:00:13]} 53. Kd3 {[%emt 0:01:26]} Nc5+ {[%emt 0:00:13]} 54. Ke3 {[%emt 0:00:03]} Nb7 {[%emt 0:00:02]} 55. Kd2 {[%emt 0:02:01]} Kd7 {[%emt 0:01:07]} 56. c3 {[%emt 0:00:40]} Nc5 {[%emt 0:02:11]} 57. cxb4 {[%emt 0:00:59]} axb4 {[%emt 0:00:36]} 58. a5 {[%emt 0:02:59]} Nxb3+ {[%emt 0:00:36]} 59. Ke3 {[%emt 0:00:10]} Nc5 {[%emt 0:00:35]} 60. Nb6+ {[%emt 0:00:56]} Kc7 {[%emt 0:00:36]} 61. Nc4 {[%emt 0:00:08]} b3 {[%emt 0:01:03]} 62. Nb2 {[%emt 0:00:32]} Kb7 {[%emt 0:00:00]} 63. Nc4 {[%emt 0:00:09]} Na4 {[%emt 0:00:19]} 64. Kd2 {[%emt 0:00:17]} Ka6 {[%emt 0:00:42]} 65. Nd6 {[%emt 0:00:16]} Kxa5 {[%emt 0:00:42]} 66. Ne8 {[%emt 0:00:01]} Kb4 {[%emt 0:00:30]} 67. Nxf6 {[%emt 0:00:23]} b2 {[%emt 0:00:49]} 68. Kc2 {[%emt 0:00:14]} Ka3 {[%emt 0:00:26]} 69. Nxh7 {[%emt 0:00:15]} Ka2 {[%emt 0:00:11]} 70. Nf6 {[%emt 0:00:39]} b1=Q+ {[%emt 0:00:04]} 71. Kd2 {[%emt 0:00:05]} Qb2+ {[%emt 0:00:20]} 72. Ke3 {[%emt 0:00:06]} Qc1+ {[%emt 0:00:17]} 1-0

[Event "Gibraltar Amateurs A 2020"]
[Site "Caleta"]
[Date "2020.01.21"]
[Round "3.8"]
[White "White, Gary"]
[Black "Marani, Luca"]
[Result "1-0"]
[ECO "A03"]
[WhiteElo "1608"]
[BlackElo "1796"]
[Annotator "NA RC"]
[PlyCount "103"]
[EventDate "2020.01.20"]
[EventType "swiss"]
[EventCountry "GGB"]
[SourceTitle "playchess.com"]
[Source "ChessBase"]
[SourceQuality "1"]
[TimeControl "6600+10"]

1. f4 {[%emt 0:01:42]} d5 {[%emt 0:01:05]} 2. Nf3 {[%emt 0:00:25]} c5 {[%emt 0:02:05]} 3. e3 {[%emt 0:03:00]} Nc6 {[%emt 0:00:38]} 4. Be2 {[%emt 0:00:42]} Nf6 {[%emt 0:02:20]} 5. d3 {[%emt 0:00:12]} g6 {[%emt 0:03:37]} 6. O-O {[%emt 0:00:53]} Bg7 {[%emt 0:00:13]} 7. Qe1 {[%emt 0:01:00]} O-O {[%emt 0:03:46]} 8. Nbd2 {[%emt 0:01:38]} Qb6 {[%emt 0:02:51]} 9. Bd1 {[%emt 0:06:44]} Bd7 {[%emt 0:07:37]} 10. c3 {[%emt 0:01:08]} Rae8 {[%emt 0:07:27]} 11. Ne5 {[%emt 0:03:35]} d4 {[%emt 0:05:41]} 12. e4 {[%emt 0:03:34]} Nxe5 {[%emt 0:04:16]} 13. fxe5 {[%emt 0:00:27]} Ng4 {[%emt 0:01:17]} 14. Bxg4 {[%emt 0:01:21]} Bxg4 {[%emt 0:01:01]} 15. Nc4 {[%emt 0:01:13]} Qc7 {[%emt 0:00:25]} 16. Bf4 {[%emt 0:00:27]} Be6 {[%emt 0:02:07]} 17. cxd4 {[%emt 0:00:27]} Bxc4 {[%emt 0:05:15]} 18. dxc4 {[%emt 0:00:02]} cxd4 {[%emt 0:00:47]} 19. Qd2 {[%emt 0:03:23]} Qxc4 {[%emt 0:02:59]} 20. Rfc1 {[%emt 0:01:14]} Qa4 {[%emt 0:01:28]} 21. b3 {[%emt 0:00:04]} Qd7 {[%emt 0:00:47]} 22. Rc4 {[%emt 0:00:21]} d3 {[%emt 0:03:49]} 23. Rac1 {[%emt 0:04:13]} Rd8 {[%emt 0:02:32]} 24. Rc7 {[%emt 0:08:39]} Qd4+ {[%emt 0:00:17]} 25. Qe3 {[%emt 0:00:41]} d2 {[%emt 0:07:42]} 26. Rd1 {[%emt 0:00:43]} Bxe5 {[%emt 0:03:22]} 27. Qxd4 {[%emt 0:02:24]} Bxd4+ {[%emt 0:00:21]} 28. Kf1 {[%emt 0:00:04]} e5 {[%emt 0:01:58]} 29. Bh6 {[%emt 0:03:45]} Rc8 {[%emt 0:07:15]} 30. Rxb7 {[%emt 0:00:44]} Rc1 {[%emt 0:04:06]} 31. Ke2 {[%emt 0:02:43]} Rxd1 {[%emt 0:02:36]} 32. Kxd1 {[%emt 0:03:06]} Rd8 {[%emt 0:07:19]} 33. Bg5 {[%emt 0:06:13]} Rd6 {[%emt 0:02:42]} 34. Be7 {[%emt 0:00:47]} Ra6 {[%emt 0:04:56]} 35. a4 {[%emt 0:01:24]} Be3 {[%emt 0:00:48]} 36. Rc7 {[%emt 0:08:32]} h5 {[%emt 0:02:23]} 37. Bc5 {[%emt 0:01:30]} Bxc5 {[%emt 0:01:20]} 38. Rxc5 {[%emt 0:00:02]} Rb6 {[%emt 0:00:36]} 39. Rc3 {[%emt 0:07:27]} Rd6 {[%emt 0:00:20]} 40. Re3 {[%emt 0:01:45]} Kg7 {[%emt 0:01:43]} 41. Re2 {[%emt 0:00:48]} Kf6 {[%emt 0:01:32]} 42. Rxd2 {[%emt 0:00:08]} Ke6 {[%emt 0:00:20]} 43. b4 {[%emt 0:06:26]} Rd4 {[%emt 0:00:02]} 44. Rxd4 {[%emt 0:00:55]} exd4 {[%emt 0:00:02]} 45. Kd2 {[%emt 0:00:10]} a6 {[%emt 0:01:01]} 46. Kd3 {[%emt 0:01:02]} Ke5 {[%emt 0:00:17]} 47. b5 {[%emt 0:00:31]} a5 {[%emt 0:00:01]} 48. b6 {[%emt 0:00:14]} Kd6 {[%emt 0:00:05]} 49. Kxd4 {[%emt 0:05:42]} Kc6 {[%emt 0:00:03]} 50. Ke5 {[%emt 0:01:08]} Kxb6 {[%emt 0:00:16]} 51. Kf6 {[%emt 0:00:04]} Kc5 {[%emt 0:00:27]} 52. Kxf7 {[%emt 0:00:50]} 1-0

[Event "Gibraltar Amateurs A 2020"]
[Site "Caleta"]
[Date "2020.01.21"]
[Round "3.9"]
[White "Oueld El Hachemi, Abdelhaq"]
[Black "Coric, Gojko"]
[Result "1/2-1/2"]
[ECO "B14"]
[WhiteElo "1788"]
[BlackElo "1704"]
[Annotator "NA"]
[PlyCount "51"]
[EventDate "2020.01.20"]
[EventType "swiss"]
[EventCountry "GGB"]
[SourceTitle "playchess.com"]
[Source "ChessBase"]
[SourceQuality "1"]
[TimeControl "6600+10"]

1. c4 {[%emt 0:00:00]} e6 {[%emt 0:00:47]} 2. Nc3 {[%emt 0:00:07]} c6 {[%emt 0:00:46]} 3. e4 {[%emt 0:00:17]} d5 {[%emt 0:02:21]} 4. cxd5 {[%emt 0:00:39]} exd5 {[%emt 0:00:05]} 5. exd5 {[%emt 0:00:12]} cxd5 {[%emt 0:00:13]} 6. d4 {[%emt 0:00:17]} Nc6 {[%emt 0:00:41]} 7. Nf3 {[%emt 0:00:15]} Nf6 {[%emt 0:00:14]} 8. Bd3 {[%emt 0:00:30]} Bg4 {[%emt 0:04:06]} 9. Be3 {[%emt 0:01:09]} a6 {[%emt 0:03:11]} 10. h3 {[%emt 0:00:16]} Bh5 {[%emt 0:01:03]} 11. O-O {[%emt 0:01:15]} Bd6 {[%emt 0:00:25]} 12. Bg5 {[%emt 0:01:22]} Be7 {[%emt 0:02:32]} 13. Re1 {[%emt 0:02:34]} O-O {[%emt 0:02:24]} 14. Bf5 {[%emt 0:02:08]} Bxf3 {[%emt 0:03:28]} 15. gxf3 {[%emt 0:00:04]} Qd6 {[%emt 0:05:33]} 16. Qd2 {[%emt 0:00:15]} Nh5 {[%emt 0:09:04]} 17. Be3 {[%emt 0:03:27]} Rae8 {[%emt 0:05:31]} 18. Kh1 {[%emt 0:00:38]} Nf6 {[%emt 0:02:49]} 19. a3 {[%emt 0:00:17]} Nh5 {[%emt 0:08:56]} 20. Bg4 {[%emt 0:00:12]} Nf6 {[%emt 0:00:11]} 21. Bf4 {[%emt 0:00:30]} Qd8 {[%emt 0:00:09]} 22. Bf5 {[%emt 0:03:49]} Nh5 {[%emt 0:02:09]} 23. Be3 {[%emt 0:00:17]} g6 {[%emt 0:00:36]} 24. Rg1 {[%emt 0:00:10]} Ng7 {[%emt 0:01:21]} 25. Bd3 {[%emt 0:00:48]} Bf6 {[%emt 0:01:23]} 26. Ne2 {[%emt 0:00:45]} 1/2-1/2

[Event "Gibraltar Amateurs A 2020"]
[Site "Caleta"]
[Date "2020.01.21"]
[Round "3.10"]
[White "Longdin, Michael"]
[Black "Bussmann, John"]
[Result "0-1"]
[ECO "D02"]
[WhiteElo "1680"]
[BlackElo "1752"]
[Annotator "NA"]
[PlyCount "72"]
[EventDate "2020.01.20"]
[EventType "swiss"]
[EventCountry "GGB"]
[SourceTitle "playchess.com"]
[Source "ChessBase"]
[SourceQuality "1"]
[TimeControl "6600+10"]

1. d4 {[%emt 0:05:13]} d5 {[%emt 0:00:00]} 2. Bf4 {[%emt 0:00:45]} Nf6 {[%emt 0:00:14]} 3. e3 {[%emt 0:00:32]} c5 {[%emt 0:00:29]} 4. c3 {[%emt 0:00:20]} Nc6 {[%emt 0:01:05]} 5. Nf3 {[%emt 0:01:37]} Qb6 {[%emt 0:00:30]} 6. b3 {[%emt 0:01:06]} g6 {[%emt 0:01:15]} 7. Bd3 {[%emt 0:01:40]} Bg7 {[%emt 0:00:39]} 8. Nbd2 {[%emt 0:01:16]} O-O {[%emt 0:00:27]} 9. h4 {[%emt 0:02:21]} Bg4 {[%emt 0:01:13]} 10. Qc2 {[%emt 0:05:25]} cxd4 {[%emt 0:01:59]} 11. exd4 {[%emt 0:03:45]} Rac8 {[%emt 0:02:56]} 12. Qb2 {[%emt 0:03:29]} Rfe8 {[%emt 0:10:35]} 13. Ne5 {[%emt 0:02:19]} Nh5 {[%emt 0:01:52]} 14. Bh2 {[%emt 0:06:36]} Nxe5 {[%emt 0:00:18]} 15. dxe5 {[%emt 0:05:06]} Bh6 {[%emt 0:16:42]} 16. Kf1 {[%emt 0:15:08]} Nf4 {[%emt 0:01:59]} 17. Bxf4 {[%emt 0:05:05]} Bxf4 {[%emt 0:00:15]} 18. Re1 {[%emt 0:04:11]} Red8 {[%emt 0:03:05]} 19. Bb1 {[%emt 0:06:39]} Qc7 {[%emt 0:07:26]} 20. c4 {[%emt 0:03:56]} dxc4 {[%emt 0:04:00]} 21. Nxc4 {[%emt 0:02:04]} b5 {[%emt 0:00:23]} 22. Ne3 {[%emt 0:14:13]} Bxe5 {[%emt 0:06:16]} 23. Qa3 {[%emt 0:00:16]} b4 {[%emt 0:02:00]} 24. Qxb4 {[%emt 0:05:43]} Be6 {[%emt 0:10:40]} 25. Qe4 {[%emt 0:04:20]} Rd4 {[%emt 0:02:17]} 26. Qf3 {[%emt 0:01:54]} Rf4 {[%emt 0:01:08]} 27. Qe2 {[%emt 0:00:25]} Bd4 {[%emt 0:01:03]} 28. Kg1 {[%emt 0:02:26]} Qb6 {[%emt 0:01:27]} 29. h5 {[%emt 0:02:04]} Qc5 {[%emt 0:02:07]} 30. hxg6 {[%emt 0:00:14]} fxg6 {[%emt 0:02:07]} 31. Bd3 {[%emt 0:01:25]} Rcf8 {[%emt 0:01:37]} 32. Qc2 {[%emt 0:02:11]} Qxc2 {[%emt 0:01:38]} 33. Bxc2 {[%emt 0:00:19]} Rxf2 {[%emt 0:00:17]} 34. Bb1 {[%emt 0:00:39]} Bc8 {[%emt 0:01:04]} 35. Nc4 {[%emt 0:00:36]} Bb7 {[%emt 0:00:57]} 36. Rh2 {[%emt 0:00:15]} Rf1# {[%emt 0:00:31]} 0-1